Cogmind - Beta 14 @@@ ROGUE MODE // 2024.08.20 @ 00:40:10 Player: TheProctologist Result: Self-destructed Performance ------------- Evolutions (2) 1000 Regions Visited (4) 800 Robots Destroyed (109) 545 Value Destroyed (3352) 3352 Prototype IDs (7) 140 Alien Tech Used (0) 0 Bonus (429) 429 TOTAL SCORE: 6266 Bonus ------- High Alert Combat Kills 429 Cogmind --------- Core Integrity 67/550 Matter 300/300 Energy 275/275 System Corruption 9% Temperature Cool (0) Movement Treading (320) Ox2 Location -8/Materials Parts ------- > --- POWER (1) -------- Deuterium Engine > --- PROPULSION (2) --- Light Treads > --- UTILITY (3) ------ Large Storage Unit Light Armor Plating > --- WEAPON (5) ------- Heavy Flail Great Maul Spear Spear > --- INVENTORY (15) --- Nuclear Core Xenon Bombardment Thruster Advanced Heat Sink Trap Scanner Transport Network Coupler Improved Targeting Computer High-powered Shotgun Assault Cannon Rocket Launcher Rocket Launcher Rocket Launcher Datajack Hammer Heavy Hammer Spear Peak State ------------ > --- POWER ------------ Heavy Ion Engine > --- PROPULSION ------- Xenon Bombardment Thruster Xenon Bombardment Thruster > --- UTILITY ---------- Large Storage Unit Hardened Heavy Armor Plating > --- WEAPON ----------- Hammer Heavy Flail Great Maul Spear Spear > --- INVENTORY -------- Deuterium Engine Advanced Heat Sink Trap Scanner Transport Network Coupler Improved Targeting Computer High-powered Shotgun Assault Cannon Rocket Launcher Rocket Launcher Rocket Launcher Datajack Hammer Heavy Hammer [Rating: 38] Favorites ----------- Power Light Ion Engine Engine Light Ion Engine Power Core Light Nuclear Core Propulsion Light Treads Treads Light Treads Leg Aluminum Leg Flight Unit Xenon Bombardment Thruster Utility Hacking Suite Device Improved Heat Sink Storage Large Storage Unit Processor Terrain Scan Processor Hackware Hacking Suite Protection Hardened Heavy Armor Plating Weapon Spear Energy Gun Medium Laser Energy Cannon Particle Cannon Ballistic Gun Light Assault Rifle Ballistic Cannon Assault Cannon Launcher Rocket Launcher Impact Weapon Hammer Piercing Weapon Spear Build | -11 -10 -9 -9 -8 ------- Run | Yrd Mat Mat Min Mat Slots Evolved 4 | . . 2 . 2 Power . | . . . . . Propulsion . | . . . . . Utility 1 | . . 1 . . Weapon 3 | . . 1 . 2 Parts Attached 85 | 8 4 25 . 48 Power 10 | 1 1 4 . 4 Engine 7 | 1 1 2 . 3 Core 3 | . . 2 . 1 Reactor . | . . . . . Propulsion 20 | 2 2 5 . 11 Treads 14 | 2 2 4 . 6 Leg 2 | . . 1 . 1 Wheel . | . . . . . Hover . | . . . . . Flight 4 | . . . . 4 Utility 20 | 2 1 6 . 11 Device 7 | 1 . 3 . 3 Storage 3 | 1 . 2 . . Processor 1 | . . 1 . . Hackware 1 | . 1 . . . Protection 8 | . . . . 8 Artifact . | . . . . . Weapon 35 | 3 . 10 . 22 Energy Gun 8 | 2 . 3 . 3 Energy Cannon 3 | . . 2 . 1 Ballistic Gun 7 | 1 . 3 . 3 Ballistic Cannon 1 | . . . . 1 Launcher 2 | . . 1 . 1 Special Weapon . | . . . . . Impact Weapon 10 | . . 1 . 9 Slashing Weapon . | . . . . . Piercing Weapon 4 | . . . . 4 Special Melee Weapon . | . . . . . Unidentified Prototypes 1 | . . 1 . . Corrupted Parts 2 | . . . . 2 System Corruption 8 | . . . . 8 Parts Lost 28 | . 1 10 . 17 Power 8 | . 1 3 . 4 Propulsion 8 | . . 3 . 5 Utility 5 | . . 1 . 4 Weapon 7 | . . 3 . 4 Highest Loss Streak 5 | . 1 4 . 5 To Critical Strikes . | . . . . . Average Slot Usage (%) 91 | . 99 94 88 86 Engine 7 | . 14 1 11 7 Core 3 | . . 8 . . Treads 15 | . 27 16 22 9 Leg 1 | . . 3 . . Flight 1 | . . . . 2 Device 3 | . 1 9 . . Storage 10 | . 14 11 11 9 Hackware 8 | . 12 11 11 4 Protection 3 | . . . . 7 Energy Gun 6 | . 14 9 . 2 Energy Cannon 5 | . . 15 . . Ballistic Gun 6 | . 14 5 22 4 Impact Weapon 12 | . . . . 25 Piercing Weapon 4 | . . . . 9 Peak Build Rating 38 | 9 10 21 15 38 Average Rating 20 | 5 9 17 15 28 On Entrance 9 | . 9 10 15 15 Naked Turns . | . . . . . Heaviest Build 62 | 12 12 37 33 62 Greatest Support 49 | 40 40 40 40 49 Greatest Overweight (x) 20 | . . 1 . 20 Average Overweight (x) 1 | . . . . 3 Largest Inventory Capacity 15 | 8 8 15 15 15 Average Capacity 11 | 7 8 9 15 15 Most Carried 15 | 5 8 15 15 15 Average Carried 10 | 4 7 9 15 13 Final Capacity 15 | 8 8 15 15 15 Final Carried 15 | 5 8 15 15 15 Class Distribution -------------------- 64% | Mutant 23% | Scavenger-Gunner 7% | Gunner Dominant Class ---------------- Mutant | -10/Materials Scavenger-Gunner | -9/Materials Scavenger-Gunner | -9/Mines Mutant | -8/Materials Resources | -11 -10 -9 -9 -8 ----------- Run | Yrd Mat Mat Min Mat Matter Collected 1600 | 304 85 387 . 824 Remotely . | . . . . . Salvage Created 4264 | 256 559 1178 . 2271 Parts 166 | 19 30 55 . 62 Haulers Intercepted 6 | . 2 2 . 2 Recyclers Shooed 3 | 3 . . . . Parts Field Recycled . | . . . . . Retrieved Matter . | . . . . . Parts Self-Destructed . | . . . . . Prevented . | . . . . . Kills | -11 -10 -9 -9 -8 ------- Run | Yrd Mat Mat Min Mat Combat Hostiles Destroyed 84 | . 14 26 . 44 Melee 22 | . . 1 . 21 Guns 28 | . 14 13 . 1 Cannons 13 | . . 12 . 1 AOE 6 | . . . . 6 Classes Destroyed 15 | 3 4 3 . 5 Worker 2 | 2 . . . . Builder 2 | . . . . 2 Tunneler 8 | 7 . . . 1 Hauler 6 | . 2 2 . 2 Recycler 5 | 1 . 1 . 3 Mechanic 1 | . . . . 1 Operator 2 | . 1 . . 1 Watcher 2 | . . 1 . 1 Swarmer 14 | . 6 4 . 4 Grunt 48 | . 8 14 . 26 Brawler 1 | . . 1 . . Duelist 1 | . . . . 1 Sentry 16 | . . 7 . 9 Hunter 3 | . . . . 3 Heavy 1 | . . . . 1 Best Kill Streak 6 | 3 3 6 . 6 Combat Bots Only 5 | . 3 5 . 5 Max Kills in Single Turn 3 | 1 1 1 . 3 Gunslinging . | . . . . . Exploded 3 | . . . . 3 Melee 1 | . . 1 . 1 Uniques/NPCs Destroyed . | . . . . . Combat | -11 -10 -9 -9 -8 -------- Run | Yrd Mat Mat Min Mat Hostile Shots Fired 629 | . 50 197 . 382 Missed 148 | . 16 50 . 82 Damage Taken 6371 | . 433 1850 . 4088 Core 902 | . 66 353 . 483 Absorbed by Shields . | . . . . . Redirected to Shielding 106 | . . . . 106 Ignored by Resistances 125 | . . . . 125 Regen/Repaired (Parts) 551 | . 105 . . 446 Core Remaining (%) 61 | 100 73 . 11 . Volleys Fired 178 | 34 57 76 . 11 Largest 5 | 2 2 3 . 5 Hottest 192 | 70 70 176 . 192 Shots Fired 438 | 68 114 212 . 44 Gun 359 | 68 114 148 . 29 Cannon 68 | . . 59 . 9 Launcher 11 | . . 5 . 6 Special . | . . . . . Kinetic 194 | 34 57 75 . 28 Thermal 222 | 34 57 129 . 2 Explosive 11 | . . 5 . 6 Electromagnetic 11 | . . 3 . 8 Robot Hit Streak 11 | 11 7 11 . 9 Robot Miss Streak 5 | 5 2 4 . 3 Penetration Max . | . . . . . Secondary Targets 5 | . 1 4 . . Max Gunslinging Chain 1 | . 1 1 . . Shots Hit Robots 408 | 41 78 134 . 155 Core Hits 131 | 15 28 49 . 39 Critical Kills 1 | . . . . 1 Critical Parts Destroyed 26 | . . 2 . 24 Critical Strikes 41 | 4 5 3 . 29 Burn 10 | 4 5 1 . . Destroy 2 | . . 2 . . Blast 1 | . . . . 1 Smash 26 | . . . . 26 Impale 2 | . . . . 2 Melee Attacks 195 | . . 1 . 194 Impact 155 | . . 1 . 154 Slashing . | . . . . . Piercing 40 | . . . . 40 Sneak Attacks 15 | . . . . 15 Combat Hostiles . | . . . . . Follow-up Attacks 63 | . . . . 63 Damage Inflicted 10279 | 439 808 2124 . 6908 Guns 2577 | 439 808 1056 . 274 Cannons 840 | . . 775 . 65 Explosions 1282 | . . 254 . 1028 Melee 5541 | . . . . 5541 Ramming 39 | . . 39 . . Kinetic 1224 | 140 306 547 . 231 Thermal 2158 | 299 502 1322 . 35 Explosive 1197 | . . 169 . 1028 Electromagnetic 120 | . . 47 . 73 Impact 4935 | . . . . 4935 Slashing . | . . . . . Piercing 606 | . . . . 606 Highest Corruption 9 | . . 3 3 9 Average Corruption 2 | . . 2 3 2 Corruption Purged . | . . . . . Corruption Blocked . | . . . . . Effects 65 | . . 40 1 24 Message Errors 14 | . . 12 . 2 Matter Fused 13 | . . 8 1 4 Heat Flow Errors 13 | . . 5 . 8 Energy Discharges 6 | . . 3 . 3 Parts Rejected 6 | . . 2 . 4 Data Loss (minor) 4 | . . 3 . 1 Data Loss (major) 1 | . . 1 . . Misfires 3 | . . 3 . . Alerts 3 | . . 1 . 2 Weapon Failures 2 | . . 2 . . Overload Shots . | . . . . . Overflow Damage 2261 | . 14 75 . 2172 Projectiles . | . . . . . Explosions 221 | . 14 75 . 132 Melee 2040 | . . . . 2040 Knockbacks 26 | . . . . 26 Impact 22 | . . . . 22 Kinetic . | . . . . . Secondary 4 | . . . . 4 Self-Inflicted Damage 227 | . 109 80 . 38 Shots 3 | . 1 1 . 1 Rammed 11 | . . 11 . . Targets Rammed 12 | . . 12 . . Kicked . | . . . . . Crushed 1 | . . 1 . . Highest Temperature 644 | 140 210 644 . 351 Average Temperature 117 | 53 60 175 . 110 Received Heat Transfer 2895 | . 123 783 . 1989 Effects 23 | . . 19 . 4 Shutdowns 3 | . . 3 . . Energy Bleed 3 | . . 3 . . Interference 7 | . . 4 . 3 Matter Decay 3 | . . 3 . . Short Circuit 2 | . . 1 . 1 Damage (minor) 4 | . . 4 . . Damage (core) 1 | . . 1 . . Siege Activations . | . . . . . Robots Corrupted 19 | . . . . 19 Combat Hostiles 15 | . . . . 15 Parts Fried 39 | . . . . 39 Impact Corruptions 66 | . . . . 66 Robots Melted . | . . . . . Combat Hostiles . | . . . . . Parts Melted 13 | 2 3 8 . . Heat Transferred 5866 | 1184 1850 2758 . 74 Parts Sabotaged . | . . . . . Parts Stolen . | . . . . . Parts Stripped . | . . . . . Power Chain Reactions . | . . . . . Alert | -11 -10 -9 -9 -8 ------- Run | Yrd Mat Mat Min Mat Peak Influence 987 | 50 251 505 196 987 Initial 196 | . . 35 196 76 Average 322 | 22 123 262 196 477 Maximum Alert Level 3 | . 1 2 . 3 Low Security (%) 35 | 100 95 11 100 18 Level 1 39 | . 4 85 . 28 Level 2 16 | . . 2 . 34 Level 3 8 | . . . . 18 Level 4 . | . . . . . Level 5 . | . . . . . High Security . | . . . . . Max Security . | . . . . . Squads Dispatched 16 | . 5 2 . 9 Investigation 7 | . 2 1 . 4 Extermination . | . . . . . Reinforcement 7 | . 3 1 . 3 Assault 2 | . . . . 2 Garrison . | . . . . . Intercept . | . . . . . Searches Triggered . | . . . . . Construction Impeded . | . . . . . Haulers Reinforced . | . . . . . Active Scanning Responses . | . . . . . Cargo Convoy Interrupts . | . . . . . Stealth | -11 -10 -9 -9 -8 --------- Run | Yrd Mat Mat Min Mat Distress Signals 14 | . 3 4 . 7 Communications Jammed . | . . . . . Distress Signals . | . . . . . Times Spotted 176 | . 27 49 . 100 Peak Tracking Total 9 | . 5 5 . 9 Tactical Retreats 16 | . 2 4 . 10 Traps | -11 -10 -9 -9 -8 ------- Run | Yrd Mat Mat Min Mat Traps Triggered 6 | . 2 3 . 1 Indirectly . | . . . . . Trap Hack Attempts . | . . . . . Triggered . | . . . . . Disarmed . | . . . . . Reprogrammed . | . . . . . Reused . | . . . . . Traps Extracted . | . . . . . Installed . | . . . . . Triggered . | . . . . . Machines | -11 -10 -9 -9 -8 ---------- Run | Yrd Mat Mat Min Mat Machines Disabled 11 | . 2 6 . 3 Max in Single Turn 2 | . 2 2 . 1 Machines Repaired . | . . . . . Machines Dismantled . | . . . . . Machines Sabotaged . | . . . . . Overloaded Fab Kills . | . . . . . Hacking | -11 -10 -9 -9 -8 --------- Run | Yrd Mat Mat Min Mat Machines Accessed 19 | . 7 6 . 6 Terminals 16 | . 6 6 . 4 Fabricators . | . . . . . Repair Stations 3 | . 1 . . 2 Recycling Units . | . . . . . Scanalyzers . | . . . . . Garrison Access . | . . . . . Total Hacks 50 | . 18 14 . 18 Successful 31 | . 11 10 . 10 Failed 19 | . 7 4 . 8 Catastrophic 2 | . 1 . . 1 Database Lockouts . | . . . . . Manual 11 | . 5 1 . 5 Terminals 39 | . 14 14 . 11 Fabricators . | . . . . . Repair Stations 11 | . 4 . . 7 Recycling Units . | . . . . . Scanalyzers . | . . . . . Garrison Access . | . . . . . Terminal Hacks 22 | . 8 10 . 4 Record 1 | . . 1 . . Robot Analysis 2 | . 2 . . . Prototype ID Bank 4 | . 2 2 . . Level Access Points 1 | . . 1 . . Branch Access Points 3 | . 1 1 . 1 Emergency Access Points 1 | . . 1 . . Machine Index 1 | . . . . 1 Alert Level 1 | . . . . 1 Locate Traps 1 | . 1 . . . Investigation Status 1 | . . 1 . . Garrison Status 1 | . . . . 1 Hauler Manifests 1 | . . 1 . . Registered Components 2 | . 1 1 . . Zone Layout 2 | . 1 1 . . Fabricator Hacks . | . . . . . Repair Station Hacks 8 | . 2 . . 6 Scan Component 4 | . 1 . . 3 Repair 4 | . 1 . . 3 Recycling Unit Hacks . | . . . . . Scanalyzer . | . . . . . Garrison Access Hacks . | . . . . . Unauthorized Hacks 1 | . 1 . . . Terminals 1 | . 1 . . . Operators 1 | . 1 . . . Fabricators . | . . . . . Repair Stations . | . . . . . Recycling Units . | . . . . . Scanalyzers . | . . . . . Garrison Access . | . . . . . Data Cores Recovered . | . . . . . Used . | . . . . . Hacking Detections 16 | . 7 4 . 5 Full Trace Events 6 | . 1 1 . 4 Feedback Events 1 | . . . . 1 Corruption 1 | . . . . 1 Feedback Blocked . | . . . . . Robot Schematics Acquired . | . . . . . Robots Built . | . . . . . Authchips . | . . . . . Time . | . . . . . Total Robot Build Rating . | . . . . . Part Schematics Acquired . | . . . . . Parts Built . | . . . . . Authchips . | . . . . . Time . | . . . . . Total Part Build Rating . | . . . . . Parts Repaired 4 | . 1 . . 3 Time 127 | . 13 . . 114 Parts Recycled . | . . . . . Recycled Matter . | . . . . . Retrieved Matter . | . . . . . Retrieved Components . | . . . . . Parts Scanalyzed . | . . . . . Part Schematics Acquired . | . . . . . Parts Damaged . | . . . . . Bothacking | -11 -10 -9 -9 -8 ------------ Run | Yrd Mat Mat Min Mat Used RIF Installer . | . . . . . Robots Hacked . | . . . . . Non-combat . | . . . . . Combat . | . . . . . Robot Hacks Applied . | . . . . . Relay Couplers Released . | . . . . . Fabnet Peak Effective % . | . . . . . Robots Rewired . | . . . . . Allies Hacked . | . . . . . Hacks Repelled . | . . . . . Allies | -11 -10 -9 -9 -8 -------- Run | Yrd Mat Mat Min Mat Total Allies . | . . . . . Largest Group . | . . . . . Highest-Rated Group . | . . . . . Highest-Rated Ally . | . . . . . Total Orders . | . . . . . Ally Attacks . | . . . . . Total Damage . | . . . . . Kills . | . . . . . Allies Corrupted . | . . . . . Allies Melted . | . . . . . Intel | -11 -10 -9 -9 -8 ------- Run | Yrd Mat Mat Min Mat Robot Analysis Total 2 | . 2 . . . Derelict Logs Recovered . | . . . . . Drone Launches . | . . . . . Drone Recoveries . | . . . . . Exploration | -11 -10 -9 -9 -8 ------------- Run | Yrd Mat Mat Min Mat Turns Passed 7113 | 418 1283 2107 21 3284 Spaces Moved 2610 | 187 665 986 14 758 Core 54 | 1 . . . 53 Treads 2125 | 186 665 679 14 581 Legs 353 | . . 307 . 46 Wheels . | . . . . . Hover . | . . . . . Flight 78 | . . . . 78 Fastest Speed 50 | 50 160 160 160 160 Average Speed 217 | 159 160 169 160 345 Slowest Speed 1050 | 160 160 190 160 1050 Overloaded Moves . | . . . . . Propulsion Burnouts . | . . . . . Robots Hopped . | . . . . . Cave-ins Triggered . | . . . . . Exploration Rate (%) 53 | 10 99 81 5 74 Regions Visited 4 Branch Regions 1 Pre-discovered Areas . | . . . . . Known Exits Taken 2 | . . 1 1 . Unknown Exits Taken 2 | 1 1 . . . Scrap Searched . | . . . . . Spaces Dug 7 | . . . . 7 Terrain Destroyed 183 | . 24 81 . 78 Melee 7 | . . . . 7 Projectile 3 | . . . . 3 AOE 173 | . 24 81 . 68 Terrain Rammed . | . . . . . Walls Destroyed . | . . . . . Machines Disabled . | . . . . . Actions | -11 -10 -9 -9 -8 --------- Run | Yrd Mat Mat Min Mat Total 3454 | 242 784 1263 13 1152 Wait 365 | 9 47 123 . 186 Move 2606 | 186 664 985 13 758 Hop . | . . . . . Pick Up 45 | 5 7 22 . 11 Fast Attach 45 | 7 1 11 . 26 Attach 30 | . 2 11 . 17 Detach 22 | . 1 5 . 16 Swap 10 | 1 1 3 . 5 Drop 31 | . 4 14 . 13 Fire 178 | 34 57 76 . 11 Melee 110 | . . 1 . 109 Ram . | . . . . . Kick . | . . . . . Crush 12 | . . 12 . . Escape Stasis . | . . . . . Rewire . | . . . . . Trap . | . . . . . Miscellaneous . | . . . . . Route ------- -11/Scrapyard -10/Materials (discovered 4 exits: *Mat x3 / *Min) -9/Materials (discovered 4 exits: *Mat x3 / *Min) -9/Mines -8/Materials (discovered 1 exit: [*Fac]) History --------- Turn | Location | Event 31 | -11/Scrapyard | Discovered new exit (range 16) 419 | -11/Scrapyard | Entered Materials 420 | -10/Materials | Build established: Mutant 599 | -10/Materials | Identified exit to Mines 1060 | -10/Materials | Discovered new exit (range 15) 1293 | -10/Materials | Discovered new exit (range 16) 1610 | -10/Materials | Discovered new exit (range 8) 1671 | -10/Materials | Repaired Lgt. Treads 1702 | -10/Materials | Entered another Materials area 1702 | -9/Materials | Evolved 2 slots: Utility x1, Weapon x1 2053 | -9/Materials | Lost 4 parts (1p2n1w) 2064 | -9/Materials | Core integrity fell below 50% 2425 | -9/Materials | Identified exit to Materials 2457 | -9/Materials | Build established: Scavenger-Gunner 2642 | -9/Materials | Identified exit to Mines 3778 | -9/Materials | Core integrity fell below 20% 3809 | -9/Materials | Entered Mines 3809 | -9/Mines | Discovered exit to Materials (range 6) 3816 | -9/Mines | Received a Rocket Launcher from a helpful Derelict 3830 | -9/Mines | Entered Materials 3830 | -8/Materials | Evolved 2 slots: Weapon x2 4046 | -8/Materials | Lost 5 parts (1p2n2w) 4498 | -8/Materials | Discovered new exit (range 5) 4526 | -8/Materials | Build established: Gunner 4798 | -8/Materials | Repaired Hvy. Hammer 4842 | -8/Materials | Build established: Mutant 5430 | -8/Materials | First assault squad dispatched 5473 | -8/Materials | Core integrity fell below 50% 6445 | -8/Materials | Repaired Hvy. Flail 6490 | -8/Materials | Repaired Hrd. Heavy Armor Plating 6920 | -8/Materials | Core integrity fell below 20% 7114 | -8/Materials | Self-destructed Last Messages --------------- 07060_ Lgt. Treads destroyed. 07062_ Acquired Lgt. Armor Plating. 07063_ System corrupted: IFF burst signal emitted. 07067_ Material Processor disabled. 07071_ Acquired Lgt. Treads. 07072_ Y-45 Defender suffers critical hit (Smash). 07072_ Destroyed Hvy. Assault Rifle. 07072_ Y-45 Defender system corrupted by crushing effect. 07072_ Spear follow-up attack on Y-45 Defender. 07072_ Heat Sink fried. 07072_ Y-45 Defender destroyed. 07076_ Acquired 25 matter. 07088_ System corrupted: Component data lost. 07104_ Triggered Alarm Trap. 07104_ An alarm sounds. 07104_ ALERT: Alarm triggered, dispatching investigation squad. Map ----- +----------------------------------------------------+ | #???????????# #????????????????????????? | | #??????????# !! #????????????????????????? | | #??????????## ! ] #????????????????????????? | | #???????????###########????????????????????????? | | #??????????????????????????????????????????????? | | ##??????????????????????????????????????????????? | | #???????????????????????????????????????????????? | | #???????????????????????????????????????????????? | | +???????????????????????????????????????????????? | | #???????????????????????????????????????????????? | | #???????????????????????????????????????????????? | | ##??????????????????????????????????????????????? | | ######################+##??????????????????????? | | #??????????????????????? | | #??????????????????????? | | #??????????????????????? | | #??????????????????????? | | """ """ """ #??????????????????????? | | ! !/ """ """ """ #??????????????????????? | | ! !/ """ """ """ ########+??????????????? | | ! ![ ???????????????? | | #????????????????? | | =%[ ! #????###?????????? | | #+####### ## #?????????? | | # ????????? | | [ % + @ g g????????? | | "" ##### g ????????? | | """ """#??#####+######+########## #?????????? | | """ S"#??# % # ????????????????????????? | | """ """#??# [ %* # ????????????????????????? | | """#??# ] # ???????????????????????? | | #??# " " # """???????????????????????? | | # #######??# """"" # """ ??????????????????????? | | ##?????????# """"" # """ ??????????????????????? | | ???????????# """"" #######?????????????????????? | | ???????????# """ #???????????????????????????? | | ???????????###########???????????????????????????? | | | | | | | | | | | | | | | | | | | | | | | | | | | +----------------------------------------------------+ Best States ------------- Heat Dissipation 45 Energy Generation 14 Energy Capacity 280 Matter Stores 300 Matter Capacity 300 Sight Range 16 Terrain Scan Range 16 Terrain Scan Density 85 Additional Mass Support 9 Armor Coverage 600 Resistance: TH 10 Propulsion Shielding 66 Evasion (%) 40 Recoil Reduction 2 Offensive Hacking 10 Item Schematics ----------------- None Robot Schematics ------------------ None Fabricated ------------ Nothing Alien Tech Used ----------------- None Achievements -------------- None Challenges ------------ None Game ------ Seed FieldShadingFragment Manual? 0 Play Time 01:05:34 Cumulative 41.7 hours Start 2024.08.19 @ 23:34:51 End 2024.08.20 @ 00:40:10 Sessions 1 Manual Loads 0 Difficulty Rogue Special Mode None Game No. 54 Rogue 54 Adventurer 0 Explorer 0 Win Type - Total 0 Types 0/0/0/0/0/0/0/0/0 Lore% 14 Gallery% 24 Achievement% 23 Wizard Run 0 Options --------- Layout 1 ASCII 0 Keyboard 0 Movement Numpad Keybinds 0 Fullscreen 1 Font 32/SmallcapsGlow Map View 50x40 Zoom Use 3% Tactical HUD 1 Map Filters NONE Filters NONE Steam 1 RUN: 592cba5e-b55e-4844-826f-c823123c4239